bitfinex/quotes_ETHUSD_20250720
["timestamp","ask_amount","ask_price","bid_price","bid_amount"]
[1753013030876,0.4604,3746.0,3745.5,0.13259161]
[1753013031071,0.4604,3746.0,3745.7,3.0]
[1753013031245,0.4604,3745.9,3745.5,0.13259161]
[1753013031891,0.4604,3745.8,3745.5,0.13259161]
[1753013032290,1.535,3746.1,3745.5,0.13259161]
[1753013032582,0.4604,3745.7,3745.5,0.13259161]
[1753013034176,0.4604,3746.5,3745.8,3.0]
[1753013034348,0.4604,3746.5,3745.6,0.32116079]
[1753013034694,0.4604,3746.5,3745.8,3.0]
[1753013034989,0.4604,3746.5,3746.0,3.0]
[1753013035285,0.46204687,3746.5,3745.5,0.39265199]
[1753013035457,2.62306875,3746.6,3745.7,3.0]
[1753013035785,0.4604,3746.4,3745.9,3.0]
[1753013035967,2.62306875,3746.6,3746.1,3.0]
[1753013036275,1.537,3746.7,3745.6,0.55]
[1753013036487,0.002,3746.7,3745.8,4.18582761]
[1753013036701,0.002,3746.7,3746.0,3.55]
[1753013036995,0.002,3746.7,3746.2,3.0]
[1753013037198,0.002,3746.7,3746.4,3.0]
[1753013037375,0.002,3746.7,3746.0,0.81006038]
[1753013037562,0.002,3746.7,3746.2,3.0]
[1753013037893,0.002,3746.7,3746.4,3.0]
[1753013038047,0.002,3746.7,3746.6,3.0]
[1753013038241,0.002,3746.7,3746.6,4.701442]
[1753013038479,0.002,3746.7,3746.6,6.799248]
[1753013038700,0.002,3746.7,3746.6,3.0]
[1753013038976,0.002,3746.7,3746.6,3.55]
[1753013039140,0.002,3746.7,3746.6,4.1168]
[1753013039347,0.002,3746.7,3746.6,10.629917]
[1753013039576,0.002,3746.7,3746.6,20.136576]
[1753013039781,0.002,3746.7,3746.6,16.59224]
[1753013039984,0.002,3746.7,3746.6,15.568924]
[1753013040390,0.002,3746.7,3746.6,15.018924]
[1753013040690,0.002,3746.7,3746.6,3.0]
[1753013040896,2.0246,3746.7,3746.6,3.0]
[1753013041071,2.24254,3746.7,3746.6,3.0]
[1753013042006,0.002,3746.7,3746.6,3.0]
[1753013043477,0.4492,3746.7,3746.6,3.0]
[1753013044202,2.0246,3746.7,3746.6,3.0]
[1753013045281,1.5774,3746.7,3746.6,3.0]
[1753013045495,0.1348,3746.7,3746.6,3.0]
[1753013046608,0.002,3746.7,3746.6,10.521224]
[1753013046899,0.002,3746.7,3746.6,8.607108]
[1753013047111,0.002,3746.7,3746.6,9.15076838]
[1753013047266,0.002,3746.7,3746.6,8.91769338]
[1753013047597,0.002,3746.7,3746.6,14.60457038]
[1753013047812,0.002,3746.7,3746.6,14.88817038]
[1753013048364,0.002,3746.7,3746.6,7.64251138]
[1753013048563,0.002,3746.7,3746.6,6.31918538]
[1753013049359,0.4492,3746.7,3746.6,3.26006038]
[1753013049676,0.582,3746.7,3745.9,0.1328]
[1753013049874,0.582,3746.7,3746.0,6.757017]
[1753013050078,0.1328,3746.4,3746.0,3.0]
[1753013050493,0.58,3746.4,3745.9,0.1328]
[1753013050675,0.58,3746.4,3746.0,2.934411]
[1753013050878,0.1328,3746.4,3746.0,2.934411]
[1753013051080,0.4472,3746.3,3745.5,0.26539161]
[1753013051297,0.1328,3745.9,3745.5,0.13259161]
[1753013051481,0.1328,3745.7,3745.5,0.13259161]
[1753013051876,0.4472,3746.3,3745.7,3.0]
[1753013052175,0.1328,3746.2,3745.5,0.26539161]
[1753013052511,0.1328,3746.2,3745.7,3.0]
[1753013052712,0.1328,3746.2,3745.6,3.0]
[1753013052877,0.58,3746.2,3745.7,5.30746]
[1753013053076,0.58,3746.2,3745.6,0.32653916]
[1753013053077,0.58,3746.2,3745.6,3.32653916]
[1753013053374,0.58,3746.2,3745.7,3.072181]
[1753013053576,0.58,3746.2,3745.6,0.32653916]
[1753013053789,0.58,3746.2,3745.5,0.26539161]
[1753013053993,0.58,3746.2,3745.7,3.0]
[1753013054228,0.4472,3746.1,3745.5,0.13259161]
[1753013054434,0.02,3746.9,3746.4,0.55]
[1753013054636,0.02,3746.9,3746.6,3.55]
[1753013054829,0.02,3746.9,3746.8,3.1328]
[1753013055062,0.02,3746.9,3746.8,18.09026861]
[1753013055217,0.02,3746.9,3746.8,17.31710732]
[1753013055419,0.02,3746.9,3746.8,2.20047132]
[1753013055597,0.02,3746.9,3746.8,31.45914132]
[1753013055796,0.02,3746.9,3746.8,27.11134532]
[1753013056017,0.02,3746.9,3746.8,19.83836032]
[1753013056335,0.02,3746.9,3746.8,11.84418617]
[1753013056498,0.02,3746.9,3746.8,3.48907704]
[1753013056499,4.485,3746.9,3746.8,3.48907704]
[1753013056907,4.485,3746.9,3746.8,3.35627704]
[1753013057208,0.02,3746.9,3746.8,3.35627704]
[1753013057537,4.9322,3746.9,3746.8,3.0]
[1753013057830,0.6,3746.9,3746.8,3.0]
[1753013058039,4.6188,3746.9,3746.8,3.0]
[1753013058607,5.066,3746.9,3746.8,3.0]
[1753013058824,4.6188,3746.9,3746.8,3.0]
[1753013059027,0.022,3746.9,3746.8,3.0]
[1753013059232,4.485,3746.9,3746.8,3.44191913]
[1753013059553,4.485,3746.9,3746.8,3.0]
[1753013059753,4.485,3746.9,3746.8,11.59419913]
[1753013060054,4.485,3746.9,3746.8,3.1328]
[1753013060242,4.485,3746.9,3746.8,3.0]
[1753013060438,0.022,3746.9,3746.8,10.966937]
[1753013060745,0.022,3746.9,3746.8,3.0]
[1753013060746,4.485,3746.9,3746.8,3.0]
[1753013061367,4.9322,3746.9,3746.8,3.0]
[1753013061571,0.022,3746.9,3746.8,13.13004717]
[1753013061776,4.484,3746.9,3746.8,21.25798299]
[1753013061974,0.022,3746.9,3746.8,23.81771299]
[1753013062474,4.484,3746.9,3746.8,23.81771299]
[1753013062674,4.484,3746.9,3746.8,18.65783799]
[1753013062837,4.484,3746.9,3746.8,18.37423799]
[1753013063034,4.484,3746.9,3746.8,7.35630317]
[1753013063372,4.483,3746.9,3746.8,3.78569617]
[1753013063547,4.9302,3746.9,3746.3,0.44191913]
[1753013063871,0.58,3746.8,3745.5,0.13259161]
[1753013064074,0.1328,3746.5,3746.1,2.737]
[1753013064246,4.461,3746.4,3746.2,2.327]
[1753013064447,4.461,3746.4,3746.2,3.0]
[1753013064653,4.461,3746.4,3745.9,0.1328]
[1753013064873,1.5808,3746.2,3745.5,0.51746676]
[1753013065054,0.1328,3746.4,3746.1,3.6189]
[1753013065251,4.46,3746.3,3746.1,3.6189]
[1753013065481,4.46,3746.3,3745.8,0.47288579]
[1753013065770,4.46,3746.3,3746.1,3.81055]
[1753013066088,4.46,3746.2,3746.1,3.81055]
[1753013066285,0.1328,3746.4,3746.1,6.6189]
[1753013066585,4.459,3746.3,3746.2,11.61829]
[1753013066740,0.1328,3746.4,3746.2,10.809767]
[1753013066932,0.1328,3746.4,3746.3,6.407932]
[1753013067134,4.5918,3746.4,3746.3,3.0]
[1753013067474,4.459,3746.4,3746.3,0.1328]
[1753013067677,4.459,3746.4,3746.3,17.113782]
[1753013067995,0.022,3746.9,3746.4,3.0]
[1753013068144,4.459,3746.8,3746.6,3.0]
[1753013068347,0.022,3746.9,3746.3,0.1328]
[1753013068553,4.459,3746.8,3746.5,3.0]
[1753013068879,4.459,3746.8,3746.7,3.0]
[1753013069075,4.458,3746.8,3746.7,5.742211]
[1753013069381,4.458,3746.8,3746.7,7.219233]
[1753013069670,4.458,3746.8,3746.3,0.1328]
[1753013069876,4.458,3746.8,3746.5,3.0]
[1753013070089,4.901,3746.8,3746.5,3.0]
[1753013070234,0.022,3746.9,3746.6,2.0291]
[1753013070438,4.458,3746.8,3746.5,3.0]
[1753013070676,4.458,3746.8,3746.7,3.0]
[1753013070879,4.458,3746.8,3746.7,3.58667]
[1753013071038,4.458,3746.8,3746.5,3.0]
[1753013071238,4.457,3746.7,3746.6,3.142193]
[1753013071438,4.457,3746.7,3746.3,0.1328]
[1753013071684,0.002,3747.3,3746.8,3.984]
[1753013071995,0.002,3747.3,3747.0,3.55]
[1753013072143,0.002,3747.3,3747.0,3.0]
[1753013072485,0.443,3747.2,3746.8,0.1328]
[1753013072973,0.443,3747.2,3747.0,3.0]
[1753013073176,0.002,3747.3,3747.2,6.317714]
[1753013073380,0.002,3747.3,3747.2,3.97281]
[1753013073582,0.002,3747.3,3747.2,6.97281]
[1753013074392,0.002,3747.3,3747.2,11.897559]
[1753013074610,0.002,3747.3,3747.2,3.0]
[1753013074787,0.445,3747.3,3747.2,3.0]
[1753013075106,2.0646,3747.3,3747.2,3.0]
[1753013075402,2.28494,3747.3,3746.5,0.1328]
[1753013075607,0.1328,3747.0,3746.5,0.1328]
[1753013075905,0.443,3746.9,3746.6,2.672352]
[1753013076272,4.5878,3747.0,3746.7,3.0]
[1753013076476,4.5878,3747.0,3746.5,0.32955132]
[1753013076477,0.1328,3747.0,3746.9,3.0]
[1753013076721,0.1328,3747.0,3746.5,0.32955132]
[1753013076875,0.1328,3747.0,3746.7,3.0]
[1753013077081,0.1328,3747.0,3746.9,3.0]
[1753013077378,4.455,3747.2,3747.0,3.0]
[1753013077582,4.455,3747.2,3747.1,6.389391]
[1753013077800,4.455,3747.2,3747.1,3.0]
[1753013078117,0.002,3747.3,3747.1,3.0]
[1753013078118,0.002,3747.3,3747.2,3.0]
[1753013078413,0.002,3747.3,3747.2,14.13909]
[1753013079027,0.002,3747.3,3747.2,8.01045]
[1753013079193,0.002,3747.3,3747.2,6.215991]
[1753013079515,0.002,3747.3,3747.2,8.013766]
[1753013079836,0.002,3747.3,3747.2,5.502625]
[1753013080031,0.002,3747.3,3747.2,3.0]
[1753013080032,0.445,3747.3,3747.2,3.0]
[1753013080182,2.4762,3747.3,3747.2,3.0]
[1753013081108,2.0332,3747.3,3747.2,3.0]
[1753013081281,1.5871,3747.3,3747.2,3.0]
[1753013081486,6.0391,3747.3,3747.2,3.0]
[1753013081909,4.454,3747.3,3747.2,3.0]
[1753013082432,0.002,3747.3,3747.2,11.150316]
[1753013082631,4.454,3747.3,3747.2,3.0]
[1753013082830,0.002,3747.3,3747.2,12.274276]
[1753013083115,0.002,3747.3,3747.2,10.301341]
[1753013083486,0.002,3747.3,3747.2,10.804138]
[1753013084519,0.002,3747.3,3747.2,16.002272]
[1753013085019,0.002,3747.3,3747.2,14.795739]
[1753013085393,0.002,3747.3,3747.2,10.98618]
[1753013085598,0.002,3747.3,3747.2,10.126154]
[1753013085826,0.002,3747.3,3747.2,9.021684]
[1753013086007,0.002,3747.3,3747.2,8.471684]
[1753013086400,0.002,3747.3,3747.2,6.475243]
[1753013086581,0.002,3747.3,3747.2,6.850243]
[1753013087721,0.443,3749.7,3747.6,0.984]
[1753013087923,1.5474,3749.8,3748.0,0.55]
[1753013088102,1.5474,3749.8,3748.2,3.55]
[1753013088299,1.5474,3749.8,3748.4,3.55]
[1753013088505,1.5474,3749.8,3748.6,3.55]
[1753013088724,1.5474,3749.8,3748.7,28.971997]
[1753013088952,1.5474,3749.8,3748.7,33.582059]
[1753013089085,1.5474,3749.8,3748.7,34.38292967]
[1753013089289,1.5474,3749.8,3748.7,34.66652967]
[1753013089536,0.443,3749.5,3748.7,12.653087]
[1753013089690,0.443,3749.5,3748.7,6.655917]
[1753013089889,0.443,3749.5,3748.7,6.306917]
[1753013090193,0.443,3749.5,3748.7,6.50368575]
[1753013090726,0.443,3749.5,3748.7,9.90197875]
[1753013090922,0.443,3749.5,3748.7,7.50197875]
[1753013091124,0.445,3748.8,3748.7,3.19676875]
[1753013091310,0.64664,3748.8,3748.7,0.19676875]
[1753013091490,0.64664,3748.8,3747.8,0.434]
[1753013091821,0.002,3748.8,3748.1,0.434]
[1753013092019,0.002,3748.8,3748.4,0.55]
[1753013092225,0.002,3748.8,3748.6,3.55]
[1753013092425,0.002,3748.8,3748.7,20.227301]
[1753013092826,0.002,3748.8,3748.7,12.172665]
[1753013093420,0.002,3748.8,3748.7,5.668169]
[1753013093622,0.002,3748.8,3748.7,6.115742]
[1753013093921,0.002,3748.8,3748.7,5.989973]
[1753013094310,0.002,3748.8,3748.7,7.56245]
[1753013094947,0.002,3748.8,3748.7,22.658241]
[1753013095115,0.002,3748.8,3748.7,8.758898]
[1753013095450,1000.002,3748.8,3748.7,5.805441]
[1753013096059,1000.002,3748.8,3748.7,9.373841]
[1753013096227,1000.002,3748.8,3748.7,8.590261]
[1753013097065,1000.002,3748.8,3748.7,19.572916]
[1753013097236,1000.002,3748.8,3748.7,18.901974]
[1753013097550,1000.002,3748.8,3748.7,12.92132482]
[1753013097773,1000.002,3748.8,3748.7,5.697974]
[1753013097928,1000.002,3748.8,3748.7,3.6828]
[1753013098331,1000.002,3748.8,3748.7,5.997469]
[1753013098858,1000.002,3748.8,3748.7,3.6828]
[1753013099554,1000.002,3748.8,3748.7,19.132133]
[1753013099759,1000.002,3748.8,3748.7,7.190544]
[1753013100059,999.86558941,3748.8,3748.7,6.924195]
[1753013100419,999.86558941,3748.8,3748.7,5.705235]
[1753013100617,1001.41298941,3748.8,3748.7,5.155235]
[1753013100850,1001.85278941,3748.8,3748.7,3.0]
[1753013101253,1001.85278941,3748.8,3748.7,5.476471]
[1753013101623,1001.85478941,3748.8,3748.7,5.476471]
[1753013101823,999.86758941,3748.8,3748.7,16.454377]
[1753013102038,1000.30738941,3748.8,3748.7,8.680703]
[1753013102238,999.86758941,3748.8,3748.7,8.680703]
[1753013102929,999.86758941,3748.8,3748.7,3.0]
[1753013104227,1000.30738941,3748.8,3748.7,3.0]
[1753013105038,999.86758941,3748.8,3748.7,5.7259]
[1753013105457,1000.30738941,3748.8,3748.7,3.0]
[1753013105662,1002.93328111,3748.8,3748.7,3.0]
[1753013106172,1007.37428111,3748.8,3748.7,3.0]
[1753013107038,1004.30858941,3748.8,3748.7,3.0]
[1753013107753,1004.30858941,3748.8,3748.7,20.436171]
[1753013107963,999.86758941,3748.8,3748.7,20.977419]
[1753013108250,999.86758941,3748.8,3748.7,21.237832]
[1753013108452,999.86758941,3748.8,3748.7,21.521432]
[1753013109042,999.86758941,3748.8,3748.7,21.90630715]
[1753013109243,999.86758941,3748.8,3748.7,32.30786282]
[1753013109461,999.86758941,3748.8,3748.7,26.69074382]
[1753013109661,999.86758941,3748.8,3748.7,21.321723]
[1753013110244,999.86758941,3748.8,3748.7,21.933709]
[1753013110867,995.91911739,3748.8,3748.7,22.066509]
[1753013111172,995.91911739,3748.8,3748.7,5.18420482]
[1753013111810,995.62311554,3748.8,3748.7,5.21088073]
[1753013111946,995.62311554,3748.8,3748.7,5.49656696]
[1753013112146,995.2301808,3748.8,3748.7,35.49656696]
[1753013112453,984.3252905,3748.8,3748.7,37.09856696]
[1753013112658,981.48938585,3748.8,3748.7,39.76615839]
[1753013112980,974.73548783,3748.8,3748.7,39.76615839]
[1753013113155,974.73548783,3748.8,3748.7,38.4451967]
[1753013113361,966.52294869,3748.8,3748.7,37.09856696]
[1753013113557,966.52294869,3748.8,3748.7,38.4451967]
[1753013114391,958.65095716,3748.8,3748.7,39.76615839]
[1753013114697,958.65095716,3748.8,3748.7,40.56546039]
[1753013114698,950.778272,3748.8,3748.7,40.56546039]
[1753013115291,950.778272,3748.8,3748.7,38.96346039]
[1753013116079,914.05471765,3748.8,3748.7,41.77929013]
[1753013116281,895.47191523,3748.8,3748.7,40.04778524]
[1753013116480,895.02075432,3748.8,3748.7,41.39441498]
[1753013116684,895.02075432,3748.8,3748.7,41.68589952]
[1753013117000,875.00387923,3748.8,3748.7,40.33926978]
[1753013117288,824.94409384,3748.8,3748.7,43.14426978]
[1753013117490,802.35907423,3748.8,3748.7,41.25866978]
[1753013117655,768.43907423,3748.8,3748.7,34.82926414]
[1753013117858,729.18997358,3748.8,3748.7,34.82926414]
[1753013118054,717.35344143,3748.8,3748.7,34.82926414]
[1753013118361,667.50396309,3748.8,3748.7,2.37926414]
[1753013118565,665.38396309,3748.8,3748.7,1.516902]
[1753013118752,661.14396309,3748.8,3748.7,1.516902]
[1753013118956,659.84396309,3748.8,3748.7,36.70562509]
[1753013119352,659.84396309,3748.8,3748.7,35.35899535]
[1753013119654,657.17937434,3748.8,3748.7,35.66060409]
[1753013119876,655.05937434,3748.8,3748.7,35.66060409]
[1753013120766,647.06553681,3748.8,3748.7,35.66060409]
[1753013121192,644.40094806,3748.8,3748.7,35.66060409]
[1753013121356,644.40094806,3748.8,3748.7,37.00723383]
[1753013121554,644.40094806,3748.8,3748.7,38.32819552]
[1753013121555,635.22922331,3748.8,3748.7,38.32819552]
[1753013121900,619.84435023,3748.8,3748.7,38.32720048]
[1753013122267,610.23163638,3748.8,3748.7,39.67383022]
[1753013122473,607.56697633,3748.8,3748.7,8.32720048]
[1753013122655,597.99758582,3748.8,3748.7,38.32720048]
[1753013122874,590.54790969,3748.8,3748.7,38.59996001]
[1753013123078,570.37852036,3748.8,3748.7,38.59996001]
[1753013123318,565.04913002,3748.8,3748.7,38.59996001]
[1753013123499,562.38446898,3748.8,3748.7,38.59996001]
[1753013123704,553.75358746,3748.8,3748.7,38.59996001]
[1753013123907,469.16129525,3748.8,3748.7,43.00696001]
[1753013124118,257.45907277,3748.8,3748.7,9.52782266]
[1753013124274,235.65756977,3748.8,3748.7,8.92985796]
[1753013124597,206.21712735,3748.8,3748.7,9.20525482]
[1753013124774,189.60988821,3748.8,3748.7,7.85862508]
[1753013124974,189.60988821,3748.8,3748.7,39.20525482]
[1753013125168,180.95326429,3748.8,3748.7,37.85862508]
[1753013125426,168.23326429,3748.8,3748.7,35.72455194]
[1753013125626,168.10015671,3748.8,3748.7,37.07118168]
[1753013125778,157.50015671,3748.8,3748.7,37.07118168]
[1753013126127,151.82704913,3748.8,3748.7,42.88805482]
[1753013126428,151.69394155,3748.8,3748.7,42.88805482]
[1753013126577,134.05096773,3748.8,3748.7,42.88805482]
[1753013126778,116.96269325,3748.8,3748.7,41.54142508]
[1753013127118,105.14005681,3748.8,3748.7,42.88805482]
[1753013127475,96.52694923,3748.8,3748.7,42.88805482]
[1753013127678,96.52694923,3748.8,3748.7,40.75398168]
[1753013127902,96.39384165,3748.8,3748.7,40.20398168]
[1753013128219,24.92052716,3748.8,3748.7,20.34165482]
[1753013128401,24.78741958,3748.8,3748.7,51.80223633]
[1753013128584,16.25244009,3748.8,3748.7,51.48645713]
[1753013128792,16.11933251,3748.8,3748.7,51.48645713]
[1753013129203,15.98622493,3748.8,3748.7,51.48645713]
[1753013129409,15.43622493,3748.8,3748.7,51.48645713]
[1753013129624,4.449,3751.9,3751.7,14.449624]
[1753013129824,4.449,3751.9,3750.5,1.1027]
[1753013129825,0.02,3751.9,3751.8,3.0]
[1753013130320,0.4563,3751.9,3751.6,31.544473]
[1753013130527,0.4563,3751.9,3751.3,26.071247]
[1753013130912,0.4563,3751.9,3751.4,0.02665671]
[1753013131113,4.428,3751.8,3751.5,39.715961]
[1753013131291,0.02,3751.9,3751.8,25.523431]
[1753013131491,0.02,3751.9,3751.8,26.071247]
[1753013131691,4.428,3752.5,3751.9,26.051247]
[1753013131986,0.4363,3752.4,3751.9,37.282734]
[1753013132191,0.4363,3752.4,3752.0,3.0]
[1753013132392,0.4363,3752.4,3752.0,12.451191]
[1753013132630,1.6233,3752.3,3752.2,3.0]
[1753013132926,2.0596,3752.3,3752.2,42.77722176]
[1753013133137,2.0596,3752.3,3752.2,44.14063476]
[1753013133431,4.427,3752.7,3752.4,3.0]
[1753013133729,4.427,3752.8,3752.6,3.0]
[1753013133934,4.446,3752.9,3752.8,3.0]
[1753013134096,4.446,3752.9,3752.8,27.427947]
[1753013134291,4.8823,3752.9,3752.8,27.427947]
[1753013136228,0.4563,3752.9,3752.8,27.62750132]
[1753013136434,2.0089,3752.9,3752.8,27.62750132]
[1753013137433,6.4339,3752.9,3752.8,27.62750132]
[1753013138929,6.4339,3752.9,3750.2,1.546]
[1753013138930,0.55,3752.8,3750.2,1.546]
[1753013139235,1.5526,3752.4,3750.9,4.32574]
[1753013139431,1.5526,3752.2,3750.4,3.0]
[1753013139634,1.6428,3752.0,3750.5,19.522239]
[1753013139929,6.5021,3751.9,3750.3,23.912753]
[1753013140093,4.423,3751.9,3750.4,16.935829]
[1753013140300,0.4363,3751.8,3750.3,17.801544]
[1753013140530,1.6428,3751.7,3750.4,16.887492]
[1753013140732,1.6428,3751.7,3750.5,17.27907]
[1753013140905,0.4363,3751.6,3750.4,3.0]
[1753013141111,0.4363,3751.6,3750.6,3.0]
[1753013141410,0.4363,3751.6,3750.8,3.0]
[1753013141624,0.4363,3751.6,3750.2,1.88042803]
[1753013141625,0.4363,3751.6,3751.0,3.0]
[1753013141933,0.4363,3751.6,3751.1,2.309852]
[1753013142132,0.4363,3751.6,3750.5,3.0]
[1753013142432,0.4363,3751.6,3750.7,3.0]
[1753013142630,0.4363,3751.6,3750.9,3.0]
[1753013142929,0.4363,3751.6,3751.0,2.252971]
[1753013143127,0.4363,3751.6,3750.5,3.0]
[1753013143296,1.6428,3751.5,3750.7,3.0]
[1753013143496,0.4363,3751.4,3750.9,3.0]
[1753013143696,0.4363,3751.4,3751.0,2.252971]
[1753013143897,0.4363,3751.4,3750.5,3.0]
[1753013144135,0.4363,3751.4,3750.7,3.0]
[1753013144428,0.4363,3751.4,3750.9,3.0]
[1753013144629,0.4363,3751.4,3750.8,3.0]
[1753013144835,0.4363,3751.4,3751.1,3.0]
[1753013144998,0.4363,3751.4,3750.0,0.55]
[1753013145198,0.4363,3751.4,3750.3,3.0]
[1753013145416,0.4363,3751.4,3750.5,3.0]
[1753013145634,0.4363,3751.4,3750.4,19.055938]
[1753013145635,0.4363,3751.4,3750.7,3.0]
[1753013145834,0.4363,3751.4,3750.9,3.0]
[1753013146132,1.6143,3751.3,3750.1,0.22039402]
[1753013146313,1.6143,3751.1,3750.3,3.0]
[1753013146513,1.6143,3751.1,3750.5,3.0]
[1753013146825,1.6143,3750.9,3750.2,0.13508905]
[1753013147019,1.6143,3750.9,3750.3,4.419219]
[1753013147331,0.4363,3750.8,3750.2,8.886697]
[1753013147713,0.4363,3750.8,3750.3,3.0]
[1753013147909,0.4363,3750.8,3750.5,3.0]
[1753013148116,0.4363,3750.8,3750.1,0.22039402]
[1753013148314,0.4363,3750.8,3750.3,3.0]
[1753013148495,0.4363,3750.8,3750.5,3.0]
[1753013148832,0.4363,3750.8,3750.1,0.22039402]
[1753013149076,0.4363,3750.8,3750.7,3.0]
[1753013149208,0.4363,3750.8,3750.5,0.1328]
[1753013149602,1.5231,3750.7,3750.5,0.1328]
[1753013149910,0.4363,3750.6,3750.5,0.1328]
[1753013150340,0.4363,3750.6,3750.5,3.1328]
[1753013150643,0.4363,3750.6,3750.5,6.554382]
[1753013151237,0.4363,3750.6,3750.5,3.1328]
[1753013151604,0.4363,3750.6,3750.5,7.079892]
[1753013152001,0.4363,3750.6,3750.5,3.1328]
[1753013152916,0.4363,3750.6,3750.5,6.374892]
[1753013153251,0.4363,3750.6,3750.5,8.574892]
[1753013154024,0.4363,3750.6,3750.5,3.1328]
[1753013154945,0.4363,3750.6,3750.5,3.0]
[1753013157037,0.4363,3750.6,3750.5,20.186986]
[1753013157241,0.4363,3750.6,3750.5,17.749876]
[1753013157643,1.5231,3750.7,3750.6,3.0]
[1753013157829,1.5588,3751.2,3750.6,15.895651]
[1753013158019,1.5588,3751.2,3750.8,3.0]
[1753013158222,2.02,3751.2,3751.0,3.1328]
[1753013158417,2.02,3751.2,3751.1,11.981986]
[1753013158652,1.5588,3751.2,3751.1,11.981986]
[1753013158962,2.02,3751.2,3751.1,6.906319]
[1753013160059,0.4612,3751.2,3751.1,6.906319]
[1753013160353,0.4612,3751.2,3751.1,3.0]
[1753013160354,2.018,3751.2,3751.1,3.0]
[1753013162169,2.018,3751.2,3751.1,18.433713]
[1753013162321,0.4612,3751.6,3751.2,3.0]
[1753013162618,0.4612,3751.5,3751.4,3.0]
[1753013162822,0.4612,3751.5,3751.3,3.0]
[1753013163022,1.5568,3751.9,3750.5,1.6565]
[1753013163258,0.4612,3751.8,3750.7,3.0]
[1753013163435,0.4612,3751.8,3750.9,3.0]
[1753013163636,0.4612,3751.8,3751.1,3.0]
[1753013163859,0.4612,3751.8,3751.3,3.0]
[1753013164036,0.4612,3751.7,3751.2,3.0]
[1753013164237,1.5568,3751.9,3751.8,3.0]
[1753013164428,2.018,3751.9,3750.5,1.6565]
[1753013164629,1.5568,3751.9,3750.7,3.0]
[1753013164968,1.5568,3751.9,3750.5,1.6565]
[1753013164969,0.4612,3751.8,3750.9,3.0]
[1753013165170,0.822,3751.8,3751.1,3.0]
[1753013165473,0.4612,3751.8,3751.3,3.0]
[1753013165760,0.4612,3751.7,3750.5,1.6575]
[1753013165964,0.4612,3751.7,3751.4,3.0]
[1753013166168,0.4612,3751.6,3750.5,1.6575]
[1753013166355,0.4612,3751.6,3750.8,3.0]
[1753013166567,0.4612,3751.6,3751.0,3.0]
[1753013166754,0.4612,3751.6,3751.2,3.0]
[1753013166948,0.4612,3751.6,3751.4,3.0]
[1753013167145,0.4612,3751.6,3751.3,3.0]
[1753013167348,0.4612,3751.6,3750.5,1.6575]
[1753013167544,0.4612,3751.6,3750.7,3.0]
[1753013167747,0.4612,3751.6,3750.9,3.0]
[1753013167969,0.4612,3751.6,3751.1,3.0]
[1753013168141,0.4612,3751.6,3751.3,3.0]
[1753013168485,0.4612,3751.6,3751.5,3.0]
[1753013168651,1.5568,3751.9,3751.6,3.0]
[1753013168853,0.4612,3751.8,3751.6,7.795441]
[1753013169051,0.4612,3751.8,3750.5,1.6575]
[1753013169052,0.4612,3751.8,3751.7,6.485089]
[1753013169363,0.4612,3751.8,3751.7,11.716625]
[1753013169677,0.4612,3751.8,3751.7,12.023316]
[1753013169893,0.4612,3751.8,3751.7,7.626141]
[1753013170379,0.4612,3751.8,3751.7,10.641365]
[1753013170581,0.4612,3751.8,3751.7,3.1328]
[1753013170880,0.822,3751.8,3751.7,3.0]
[1753013171591,0.822,3751.8,3751.3,0.1328]
[1753013171793,1.5661,3751.7,3750.5,0.001]
[1753013171946,0.1328,3751.6,3751.0,0.1328]
[1753013172146,0.4612,3751.5,3751.2,3.0]
[1753013172393,0.1328,3751.6,3751.0,0.1328]
[1753013172394,0.4612,3751.4,3751.0,0.1328]
[1753013172680,0.4612,3751.4,3750.5,0.001]
[1753013172681,1.5661,3751.3,3750.5,0.001]
[1753013172853,0.1328,3750.9,3750.5,0.001]
[1753013173044,1.5661,3750.8,3750.5,0.001]
[1753013173243,2.0273,3750.8,3750.5,0.001]
[1753013173480,0.4612,3750.7,3750.5,0.001]
[1753013173981,0.4612,3750.6,3750.5,0.001]
[1753013174180,0.4612,3750.6,3750.5,7.511323]
[1753013174477,2.32301,3750.6,3750.5,0.001]
[1753013174696,2.107,3750.6,3750.5,0.001]
[1753013175384,2.107,3750.6,3750.5,3.001]
[1753013175588,2.107,3750.6,3750.5,0.001]
[1753013177793,2.657,3750.6,3750.5,0.001]
[1753013178085,2.9227,3750.6,3750.5,0.001]
[1753013185592,2.107,3750.6,3750.5,0.001]
[1753013187892,0.55,3750.5,3750.2,0.12922121]
[1753013188099,0.55,3750.5,3750.1,0.22039402]
[1753013188100,0.55,3750.3,3750.1,0.22039402]
[1753013188407,0.55,3749.9,3749.7,0.001]
[1753013188765,0.4544,3749.8,3749.7,0.001]
[1753013190005,0.4544,3749.8,3749.7,0.13128966]
[1753013190196,0.70611,3749.8,3749.7,0.13128966]
[1753013190504,2.82601,3749.8,3749.7,0.20244763]
[1753013191804,2.27601,3749.8,3749.7,0.20244763]
[1753013191987,4.403,3750.2,3749.7,0.20244763]
[1753013192300,4.402,3750.1,3749.7,0.20244763]